fUST/lending_fUST_20250810
["ID","MTS","AMOUNT","RATE_DAILY","PERIOD"]
[378335154,1754830243252,-460.0,0.00021642,2]
[378335155,1754830243261,-764.6,0.00021642,2]
[378335156,1754830243270,-460.0,0.00021643,2]
[378335157,1754830243279,-727.7,0.00021643,2]
[378335158,1754830243289,-1840.89,0.00021643,2]
[378335159,1754830243299,-624.49,0.00021643,2]
[378335160,1754830243312,-5226.67014601,0.00021655,2]
[378335161,1754830243321,-160.0,0.00021753,2]
[378335162,1754830243330,-160.0,0.00021761,2]
[378335163,1754830243339,-160.0,0.00021761,2]
[378335165,1754830243349,-843.0869304,0.00021761,2]
[378335166,1754830243362,-160.0,0.00021761,2]
[378335167,1754830243371,-527.86640923,0.00021761,2]
[378335168,1754830243381,-160.0,0.00021761,2]
[378335169,1754830243390,-312.16666667,0.00021761,2]
[378335170,1754830243399,-215.44987349,0.00021761,2]
[378335171,1754830243407,-461.62346162,0.00021761,2]
[378335172,1754830243417,-216.64838636,0.00021761,2]
[378335173,1754830243426,-231.96268195,0.00021761,2]
[378335174,1754830243435,-160.0,0.00021764,2]
[378335175,1754830243444,-12668.57659669,0.00021769,2]
[378335176,1754830243453,-160.0,0.00021805,2]
[378335177,1754830243462,-837.19,0.00021812,2]
[378335178,1754830243471,-559.51,0.00021812,2]
[378335179,1754830243481,-460.0,0.00021812,2]
[378335180,1754830243490,-460.0,0.00021813,2]
[378335181,1754830243499,-460.0,0.00021813,2]
[378335182,1754830243508,-458.18,0.00021906,3]
[378335183,1754830243517,-846.67,0.00021914,2]
[378335184,1754830243526,-629.56,0.00021914,2]
[378335185,1754830243535,-728.12,0.00021914,2]
[378335186,1754830243544,-745.25,0.00021914,2]
[378335187,1754830243554,-692.27,0.00021915,2]
[378335188,1754830243564,-460.0,0.00021915,2]
[378335189,1754830243573,-715.24,0.00021915,2]
[378335190,1754830243583,-651.52,0.00021915,2]
[378335191,1754830243592,-460.0,0.00021915,2]
[378335192,1754830243601,-558.42,0.00021916,2]
[378335193,1754830243611,-2065.88,0.00021916,2]
[378335196,1754830243620,-460.0,0.00021916,2]
[378335198,1754830243629,-753.63,0.00021916,2]
[378335200,1754830243638,-460.0,0.00021916,2]
[378335202,1754830243647,-764.6,0.00021916,2]
[378335203,1754830243657,-460.0,0.00021917,2]
[378335204,1754830243666,-727.7,0.00021917,2]
[378335205,1754830243675,-1840.89,0.00021917,2]
[378335206,1754830243685,-624.49,0.00021917,2]
[378335207,1754830243694,-4084.04,0.00021917,2]
[378335208,1754830243704,-989.75157099,0.00021997,2]
[378335209,1754830243713,-971.82,0.00022,2]
[378335210,1754830243723,-166.0,0.00022,2]
[378335211,1754830243732,-837.19,0.00022086,2]
[378335212,1754830243742,-559.51,0.00022086,2]
[378335213,1754830243751,-460.0,0.00022087,2]
[378335214,1754830243760,-460.0,0.00022087,2]
[378335215,1754830243770,-10582.92687689,0.00022089,2]
[378335216,1754830243779,-846.67,0.00022188,2]
[378335217,1754830243788,-629.56,0.00022188,2]
[378335218,1754830243798,-728.12,0.00022188,2]
[378335219,1754830243807,-745.25,0.00022188,2]
[378335220,1754830243818,-692.27,0.00022189,2]
[378335221,1754830243827,-466.07733321,0.00022189,2]
[378335222,1754830243837,-715.24,0.00022189,2]
[378335223,1754830243846,-651.52,0.00022189,2]
[378335224,1754830243856,-460.0,0.00022189,2]
[378335225,1754830243866,-558.42,0.0002219,2]
[378335226,1754830243875,-2065.88,0.0002219,2]
[378335227,1754830243885,-460.0,0.0002219,2]
[378335228,1754830243894,-753.63,0.0002219,2]
[378335229,1754830243904,-460.0,0.0002219,2]
[378335230,1754830243913,-764.6,0.0002219,2]
[378335231,1754830243923,-460.0,0.00022191,2]
[378335232,1754830243933,-727.7,0.00022191,2]
[378335233,1754830243942,-1840.89,0.00022191,2]
[378335234,1754830243951,-624.49,0.00022191,2]
[378335235,1754830243960,-260.0,0.00022353,2]
[378335236,1754830243970,-837.19,0.0002236,2]
[378335237,1754830243982,-559.51,0.0002236,2]
[378335238,1754830243991,-460.0,0.00022361,2]
[378335239,1754830244000,-460.0,0.00022361,2]
[378335240,1754830244010,-846.67,0.00022462,2]
[378335241,1754830244019,-629.56,0.00022462,2]
[378335242,1754830244029,-728.12,0.00022462,2]
[378335243,1754830244039,-745.25,0.00022462,2]
[378335244,1754830244048,-692.27,0.00022463,2]
[378335245,1754830244058,-715.24,0.00022463,2]
[378335246,1754830244067,-651.52,0.00022463,2]
[378335247,1754830244076,-460.0,0.00022463,2]
[378335248,1754830244085,-558.42,0.00022464,2]
[378335249,1754830244095,-2065.88,0.00022464,2]
[378335250,1754830244104,-460.0,0.00022464,2]
[378335251,1754830244114,-753.63,0.00022464,2]
[378335252,1754830244123,-560.73150587,0.00022464,2]
[378335253,1754830244132,-764.6,0.00022464,2]
[378335254,1754830244142,-460.0,0.00022465,2]
[378335255,1754830244151,-727.7,0.00022465,2]
[378335257,1754830244160,-1840.89,0.00022465,2]
[378335259,1754830244170,-624.49,0.00022465,2]
[378335261,1754830244180,-500.0,0.00022482,2]
[378335263,1754830244189,-151.0,0.000226,6]
[378335265,1754830244199,-837.19,0.00022634,2]
[378335267,1754830244209,-559.51,0.00022634,2]
[378335269,1754830244218,-460.0,0.00022635,2]
[378335270,1754830244228,-460.0,0.00022635,2]
[378335271,1754830244237,-153.0,0.00022694,2]
[378335272,1754830244246,-153.0,0.00022694,2]
[378335273,1754830244255,-989.75157099,0.00022728,2]
[378335274,1754830244265,-846.67,0.00022736,2]
[378335275,1754830244274,-629.56,0.00022736,2]
[378335276,1754830244283,-728.12,0.00022736,2]
[378335277,1754830244293,-745.25,0.00022736,2]
[378335278,1754830244302,-692.27,0.00022737,2]
[378335279,1754830244311,-715.24,0.00022737,2]
[378335280,1754830244321,-651.52,0.00022737,2]
[378335281,1754830244330,-460.0,0.00022737,2]
[378335282,1754830244339,-558.42,0.00022738,2]
[378335283,1754830244349,-2065.88,0.00022738,2]
[378335284,1754830244358,-460.0,0.00022738,2]
[378335285,1754830244368,-753.63,0.00022738,2]
[378335286,1754830244377,-764.6,0.00022738,2]
[378335287,1754830244387,-460.0,0.00022739,2]
[378335288,1754830244397,-727.7,0.00022739,2]
[378335289,1754830244406,-1840.89,0.00022739,2]
[378335290,1754830244416,-624.49,0.00022739,2]
[378335291,1754830244426,-151.0,0.000229,9]
[378335292,1754830244435,-360.0,0.00022901,2]
[378335293,1754830244444,-837.19,0.00022908,2]
[378335294,1754830244454,-559.51,0.00022908,2]
[378335295,1754830244463,-460.0,0.00022909,2]
[378335296,1754830244472,-518.80808984,0.00022909,2]
[378335297,1754830244584,-500.0,0.00022935,2]
[378335298,1754830244593,-150.0,0.00022935,2]
[378335299,1754830244603,-500.0,0.00022935,2]
[378335300,1754830244614,-160.0,0.00023,2]
[378335301,1754830244623,-846.67,0.0002301,2]
[378335302,1754830244633,-629.56,0.0002301,2]
[378335303,1754830244642,-728.12,0.0002301,2]
[378335304,1754830244652,-745.25,0.0002301,2]
[378335305,1754830244662,-692.27,0.00023011,2]
[378335306,1754830244672,-715.24,0.00023011,2]
[378335307,1754830244681,-651.52,0.00023011,2]
[378335308,1754830244691,-460.0,0.00023011,2]
[378335309,1754830244701,-558.42,0.00023012,2]
[378335310,1754830244710,-2065.88,0.00023012,2]
[378335311,1754830244720,-460.0,0.00023012,2]
[378335312,1754830244729,-753.63,0.00023012,2]
[378335313,1754830244738,-764.6,0.00023012,2]
[378335314,1754830244748,-460.0,0.00023013,2]
[378335315,1754830244758,-727.7,0.00023013,2]
[378335316,1754830244768,-1840.89,0.00023013,2]
[378335317,1754830244777,-624.49,0.00023013,2]
[378335318,1754830244787,-1000.0,0.0002303,2]
[378335319,1754830244797,-151.0,0.00023053,2]
[378335320,1754830244806,-500.0,0.00023053,2]
[378335321,1754830244815,-151.0,0.00023053,2]
[378335322,1754830244824,-151.0,0.00023053,2]
[378335323,1754830244834,-500.0,0.00023053,2]
[378335324,1754830244843,-151.0,0.00023053,2]
[378335325,1754830244853,-500.0,0.00023053,2]
[378335326,1754830244863,-151.0,0.00023053,2]
[378335327,1754830244872,-500.0,0.00023053,2]
[378335328,1754830244882,-151.0,0.00023053,2]
[378335329,1754830244892,-151.0,0.00023053,2]
[378335330,1754830244902,-500.0,0.00023053,2]
[378335331,1754830244911,-263.85481817,0.00023053,2]
[378335332,1754830244921,-151.0,0.00023053,2]
[378335333,1754830244930,-500.0,0.00023053,2]
[378335334,1754830244940,-500.0,0.00023053,2]
[378335335,1754830244949,-500.0,0.00023053,2]
[378335336,1754830244959,-500.0,0.00023053,2]
[378335337,1754830244969,-151.0,0.00023053,2]
[378335338,1754830244982,-500.0,0.00023053,2]
[378335339,1754830244992,-151.0,0.00023053,2]
[378335340,1754830245001,-500.0,0.00023053,2]
[378335341,1754830245011,-18502.69577858,0.00023053,2]
[378335342,1754830245022,-151.0,0.00023053,2]
[378335343,1754830245031,-500.0,0.00023053,2]
[378335344,1754830245042,-151.0,0.00023053,2]
[378335345,1754830245052,-500.0,0.00023053,2]
[378335346,1754830245062,-500.0,0.00023053,2]
[378335347,1754830245072,-151.0,0.00023053,2]
[378335348,1754830245082,-500.0,0.00023053,2]
[378335349,1754830245091,-151.0,0.00023053,2]
[378335350,1754830245099,-151.0,0.00023053,2]
[378335351,1754830245109,-500.0,0.00023053,2]
[378335352,1754830245118,-151.0,0.00023053,2]
[378335353,1754830245127,-151.0,0.00023053,2]
[378335354,1754830245136,-151.0,0.00023053,2]
[378335355,1754830245146,-151.0,0.00023053,2]
[378335356,1754830245155,-250.0,0.00023053,2]
[378335357,1754830245164,-250.0,0.00023053,2]
[378335358,1754830245174,-250.0,0.00023053,2]
[378335359,1754830245185,-250.0,0.00023053,2]
[378335360,1754830245195,-151.0,0.00023053,2]
[378335361,1754830245205,-250.0,0.00023053,2]
[378335362,1754830245214,-151.0,0.00023053,2]
[378335363,1754830245223,-250.0,0.00023053,2]
[378335364,1754830245233,-151.0,0.00023053,2]
[378335365,1754830245242,-151.0,0.00023053,2]
[378335366,1754830245251,-151.0,0.00023053,2]
[378335367,1754830245260,-250.0,0.00023053,2]
[378335368,1754830245269,-233.58820104,0.00023053,2]
[378335369,1754830245279,-258.4,0.00023073,2]
[378335370,1754830245288,-837.19,0.00023182,2]
[378335371,1754830245298,-559.51,0.00023182,2]
[378335372,1754830245308,-1269.98852713,0.00023182,2]
[378335373,1754830245317,-460.0,0.00023183,2]
[378335374,1754830245326,-971.82,0.00023186,2]
[378335375,1754830245335,-151.0,0.000232,10]
[378335376,1754830245344,-1242.0,0.00023275,2]
[378335377,1754830245353,-846.67,0.00023284,2]
[378335378,1754830245362,-629.56,0.00023284,2]
[378335379,1754830245372,-728.12,0.00023284,2]
[378335380,1754830245380,-745.25,0.00023284,2]
[378335381,1754830245390,-692.27,0.00023285,2]
[378335382,1754830245400,-715.24,0.00023285,2]
[378335383,1754830245409,-651.52,0.00023285,2]
[378335384,1754830245418,-460.0,0.00023285,2]
[378335385,1754830245427,-558.42,0.00023286,2]
[378335386,1754830245437,-2065.88,0.00023286,2]
[378335387,1754830245447,-460.0,0.00023286,2]
[378335388,1754830245457,-753.63,0.00023286,2]
[378335389,1754830245466,-764.6,0.00023286,2]
[378335390,1754830245475,-460.0,0.00023287,2]
[378335391,1754830245486,-727.7,0.00023287,2]
[378335392,1754830245497,-1840.89,0.00023287,2]
[378335393,1754830245506,-624.49,0.00023287,2]
[378335394,1754830245516,-1242.0,0.00023292,2]
[378335395,1754830245527,-151.0,0.000233,9]
[378335396,1754830245537,-5226.67014601,0.00023409,2]
[378335397,1754830245546,-150.0,0.00023423,2]
[378335398,1754830245556,-1242.0,0.00023438,2]
[378335399,1754830245565,-382.0,0.00023449,2]
[378335400,1754830245574,-460.0,0.00023449,2]
[378335401,1754830245584,-837.19,0.00023456,2]
[378335402,1754830245593,-559.51,0.00023456,2]
[378335403,1754830245602,-460.0,0.00023457,2]
[378335404,1754830245611,-989.75157099,0.00023459,2]
[378335405,1754830245620,-1000.0,0.00023483,2]
[378335406,1754830245629,-250.0,0.00023483,2]
[378335407,1754830245638,-179.83,0.00023486,2]
[378335408,1754830245648,-10582.92687688,0.00023495,2]
[378335409,1754830245657,-846.67,0.00023558,2]
[378335410,1754830245667,-629.56,0.00023558,2]
[378335411,1754830245681,-728.12,0.00023558,2]
[378335412,1754830245695,-745.25,0.00023558,2]
[378335413,1754830245709,-692.27,0.00023559,2]
[378335414,1754830245722,-715.24,0.00023559,2]
[378335415,1754830245733,-651.52,0.00023559,2]
[378335416,1754830245745,-460.0,0.00023559,2]
[378335417,1754830245758,-558.42,0.0002356,2]
[378335418,1754830245770,-2065.88,0.0002356,2]
[378335419,1754830245783,-460.0,0.0002356,2]
[378335420,1754830245797,-753.63,0.0002356,2]
[378335421,1754830245810,-764.6,0.0002356,2]
[378335422,1754830245824,-460.0,0.00023561,2]
[378335423,1754830245838,-727.7,0.00023561,2]
[378335424,1754830245850,-1840.89,0.00023561,2]
[378335425,1754830245862,-624.49,0.00023561,2]
[378335426,1754830245874,-1242.0,0.00023564,2]
[378335427,1754830245886,-500.0,0.00023578,2]
[378335428,1754830245898,-151.0,0.000236,10]
[378335429,1754830245910,-151.0,0.00023601,2]
[378335430,1754830245923,-1242.0,0.00023613,2]
[378335431,1754830245935,-151.0,0.000237,10]
[378335432,1754830245947,-1242.0,0.00023704,2]
[378335433,1754830245957,-837.19,0.0002373,2]
[378335434,1754830245970,-559.51,0.0002373,2]
[378335435,1754830245986,-460.0,0.00023731,2]
[378335437,1754830245999,-846.67,0.00023832,2]
[378335438,1754830246012,-629.56,0.00023832,2]
[378335439,1754830246026,-728.12,0.00023832,2]
[378335440,1754830246040,-745.25,0.00023832,2]
[378335441,1754830246053,-692.27,0.00023833,2]
[378335442,1754830246067,-715.24,0.00023833,2]
[378335443,1754830246079,-651.52,0.00023833,2]
[378335444,1754830246093,-460.0,0.00023833,2]
[378335445,1754830246104,-558.42,0.00023834,2]
[378335446,1754830246116,-2065.88,0.00023834,2]
[378335447,1754830246127,-460.0,0.00023834,2]
[378335448,1754830246138,-753.63,0.00023834,2]
[378335449,1754830246151,-764.6,0.00023834,2]
[378335450,1754830246165,-460.0,0.00023835,2]
[378335451,1754830246179,-727.7,0.00023835,2]
[378335452,1754830246189,-1840.89,0.00023835,2]
[378335453,1754830246200,-624.49,0.00023835,2]
[378335454,1754830246212,-2871.0,0.00023842,2]
[378335455,1754830246225,-70000.0,0.0002385,7]
[378335456,1754830246239,-312.16666667,0.0002385,7]
[378335457,1754830246251,-461.62346162,0.0002385,7]
[378335458,1754830246263,-527.86640923,0.0002385,7]
[378335459,1754830246274,-215.44987349,0.0002385,7]
[378335460,1754830246285,-1242.0,0.00023853,2]
[378335461,1754830246298,-2150.0,0.0002387,2]
[378335462,1754830246310,-971.0,0.0002387,2]
[378335463,1754830246321,-636.0,0.0002387,2]
[378335464,1754830246332,-500.0,0.00023873,2]
[378335465,1754830246343,-500.0,0.00023873,2]
[378335466,1754830246354,-500.0,0.00023873,2]
[378335467,1754830246365,-500.0,0.00023873,2]
[378335468,1754830246376,-183.384,0.00023927,5]
[378335469,1754830246387,-150.0,0.00023938,2]
[378335470,1754830246398,-1242.0,0.00023959,2]
[378335471,1754830246409,-500.0,0.00023973,2]
[378335472,1754830246419,-500.0,0.00023973,2]
[378335473,1754830246430,-560.0,0.00023997,2]
[378335474,1754830246442,-67102.1536133,0.00023998,2]
[378335475,1754830246619,-205367.9589864,0.00023998,2]
[378335476,1754830246686,460.0,0.00019997,2]
[378335477,1754830248108,-460.0,0.00019999,2]
[378335478,1754830248117,-207.56070991,0.00020169,2]
[378335479,1754830248126,-460.0,0.00020273,2]
[378335480,1754830248136,-924.74,0.00021914,2]
[378335481,1754830248145,-924.74,0.00022188,2]
[378335482,1754830248155,-924.74,0.00022462,2]
[378335483,1754830248165,-924.74,0.00022736,2]
[378335484,1754830248175,-924.74,0.0002301,2]
[378335485,1754830248184,-924.74,0.00023284,2]
[378335486,1754830248194,-924.74,0.00023558,2]
[378335487,1754830248203,-924.74,0.00023832,2]
[378335488,1754830248212,-14103.17891956,0.00023998,2]
[378335489,1754830248249,460.0,0.00019997,2]
[378335490,1754830248765,463.57266305,0.00019997,2]
[378335491,1754830249786,460.0,0.00019997,2]
[378335492,1754830256870,460.0,0.00019997,2]
[378335493,1754830260405,460.0,0.00019997,2]
[378335494,1754830266895,460.0,0.00019997,2]
[378335496,1754830276880,460.0,0.00019997,2]
[378335497,1754830287887,211.88724249,0.00019997,2]
[378335498,1754830289289,460.0,0.00019997,2]
[378335499,1754830289319,464.48445205,0.00019997,2]
[378335500,1754830289808,546.94,0.00019997,2]
[378335502,1754830306864,460.0,0.00019997,2]
[378335503,1754830307188,460.0,0.00019997,2]
[378335504,1754830310154,460.0,0.00019997,2]
[378335505,1754830310500,460.0,0.00019997,2]
[378335506,1754830315762,236.7447769,0.00019997,2]
[378335507,1754830316555,204.753215,0.00019997,2]
[378335508,1754830317484,460.0,0.00019997,2]
[378335509,1754830318278,460.0,0.00019997,2]
[378335510,1754830318492,150.0,0.00026516,30]
[378335511,1754830322498,300.0,0.00019997,2]
[378335512,1754830330610,716.09,0.00019997,2]
[378335513,1754830332996,5050.09709677,0.000199,2]
[378335514,1754830340626,460.0,0.00019997,2]
[378335515,1754830346106,314.9957692,0.00019997,2]
[378335516,1754830346130,145.0042308,0.00019997,2]
[378335517,1754830349636,460.0,0.00019997,2]
[378335518,1754830353541,460.0,0.00019997,2]
[378335519,1754830354792,468.85337279,0.00019997,2]
[378335520,1754830358687,460.0,0.00019997,2]
[378335522,1754830361513,460.0,0.00019997,2]
[378335523,1754830368961,460.0,0.00019997,2]
[378335524,1754830370746,460.0,0.00019997,2]
[378335525,1754830371343,460.0,0.00019997,2]
[378335526,1754830372930,460.0,0.00019997,2]
[378335527,1754830376345,460.0,0.00019997,2]
[378335528,1754830382930,300.0,0.00019997,2]
[378335529,1754830384353,460.0,0.00019997,2]
[378335530,1754830389373,460.0,0.00019997,2]
[378335531,1754830391508,460.0,0.00019997,2]
[378335532,1754830391537,460.0,0.00019997,2]
[378335533,1754830395050,460.0,0.00019997,2]
[378335534,1754830395708,460.0,0.00019997,2]
[378335535,1754830398612,460.0,0.00019997,2]
[378335536,1754830406838,460.0,0.00019997,2]
[378335537,1754830409015,460.0,0.00019997,2]
[378335538,1754830409093,460.0,0.00019997,2]
[378335539,1754830410195,460.0,0.00019997,2]
[378335540,1754830412097,460.0,0.00019997,2]
[378335541,1754830419399,460.0,0.00019997,2]
[378335542,1754830423041,465.38415668,0.00019997,2]
[378335543,1754830427673,486.42888748,0.00019997,2]
[378335544,1754830435713,460.0,0.00019997,2]
[378335545,1754830436535,166.015776,0.00019356,2]
[378335546,1754830436733,166.015776,0.00019405,2]
[378335547,1754830436977,166.015776,0.00019453,2]
[378335548,1754830437178,166.015776,0.00019502,2]
[378335549,1754830437399,166.015776,0.0001955,2]
[378335550,1754830442906,300.0,0.00019997,2]
[378335551,1754830445668,460.0,0.00019997,2]
[378335552,1754830447478,460.0,0.00019997,2]
[378335553,1754830450956,3883.0206654,0.0001933,2]
[378335554,1754830453135,460.0,0.00019997,2]
[378335555,1754830455169,460.0,0.00019997,2]
[378335556,1754830455663,460.0,0.00019997,2]
[378335557,1754830457001,241.22980685,0.00019997,2]
[378335558,1754830457026,218.77019315,0.00019997,2]
[378335559,1754830459647,462.85160041,0.00019997,2]
[378335560,1754830475715,338.57466,0.00013699,2]
[378335561,1754830477547,460.0,0.00019997,2]
[378335563,1754830485290,460.0,0.00019997,2]
[378335564,1754830486721,460.0,0.00019997,2]
[378335565,1754830489464,10000.0,0.00019312,2]
[378335566,1754830490805,460.0,0.00019997,2]
[378335567,1754830493395,460.0,0.00019997,2]
[378335568,1754830493925,209.86097,0.00019398,2]
[378335569,1754830495266,460.0,0.00019997,2]
[378335570,1754830498674,460.0,0.00019997,2]
[378335571,1754830500628,460.0,0.00019997,2]
[378335572,1754830504805,300.0,0.00019997,2]
[378335573,1754830505317,480.0,0.00019997,2]
[378335574,1754830509828,460.0,0.00019997,2]
[378335576,1754830528231,3849.94257644,0.000199,2]
[378335577,1754830528261,1352.01726926,0.000199,2]
[378335578,1754830531357,460.0,0.00019997,2]
[378335579,1754830533173,460.0,0.00019997,2]
[378335580,1754830535189,460.0,0.00019997,2]
[378335581,1754830535357,311.95801396,0.00019997,2]
[378335582,1754830535927,460.0,0.00019997,2]
[378335583,1754830537136,460.0,0.00019997,2]
[378335584,1754830538310,460.0,0.00019997,2]
[378335585,1754830540223,460.0,0.00019997,2]
[378335586,1754830542090,460.0,0.00019997,2]
[378335587,1754830543335,461.87899425,0.00019997,2]
[378335588,1754830545438,460.0,0.00019997,2]
[378335589,1754830553717,1753.99,0.00019997,2]
[378335590,1754830557934,462.10113837,0.00019997,2]
[378335591,1754830562016,939.58,0.00019997,2]
[378335592,1754830565388,460.0,0.00019997,2]
[378335593,1754830567454,460.0,0.00019997,2]
[378335594,1754830570022,460.0,0.00019997,2]
[378335597,1754830577196,482.88524,0.00019206,2]
[378335598,1754830583723,460.0,0.00019997,2]
[378335599,1754830584819,460.0,0.00019997,2]
[378335600,1754830589738,460.0,0.00019997,2]
[378335601,1754830592090,460.83369777,0.00019997,2]
[378335602,1754830592458,653.96,0.00019997,2]
[378335603,1754830592527,865.07,0.00019997,2]
[378335604,1754830592692,460.0,0.00019997,2]
[378335605,1754830594487,460.0,0.00019997,2]
[378335606,1754830596318,460.0,0.00019997,2]
[378335607,1754830599713,460.0,0.00019997,2]
[378335608,1754830601497,460.0,0.00019997,2]
[378335609,1754830603977,460.0,0.00019997,2]
[378335610,1754830609500,460.0,0.00019997,2]
[378335612,1754830610588,460.0,0.00019997,2]
[378335613,1754830612513,460.0,0.00019997,2]
[378335614,1754830615018,465.27132472,0.00019997,2]
[378335615,1754830616854,460.0,0.00019997,2]
[378335616,1754830625954,290.45432167,0.00019997,2]
[378335617,1754830625979,169.54567833,0.00019997,2]
[378335618,1754830629023,460.0,0.00019997,2]
[378335619,1754830629117,460.0,0.00019997,2]
[378335620,1754830631486,460.0,0.00019997,2]
[378335621,1754830631644,381.71185404,0.00019997,2]
[378335622,1754830635216,604.08209236,0.00019997,2]
[378335623,1754830636646,460.0,0.00019997,2]
[378335624,1754830637837,501.99,0.00019997,2]
[378335625,1754830643665,460.0,0.00019997,2]
[378335626,1754830644403,460.0,0.00019997,2]
[378335627,1754830645148,460.0,0.00019997,2]
[378335628,1754830647248,460.0,0.00019997,2]
[378335629,1754830647554,460.0,0.00019997,2]
[378335630,1754830650783,460.0,0.00019997,2]
[378335631,1754830651829,460.0,0.00019997,2]
[378335632,1754830653060,460.0,0.00019997,2]
[378335634,1754830653765,460.0,0.00019997,2]
[378335635,1754830655162,460.0,0.00019997,2]
[378335636,1754830657891,460.0,0.00019997,2]
[378335637,1754830658320,460.0,0.00019997,2]
[378335638,1754830658848,460.0,0.00019997,2]
[378335639,1754830660149,460.0,0.00019997,2]
[378335640,1754830660776,460.0,0.00019997,2]
[378335641,1754830661421,460.0,0.00019997,2]
[378335642,1754830664963,460.0,0.00019997,2]
[378335643,1754830665161,460.0,0.00019997,2]
[378335644,1754830666681,460.0,0.00019997,2]
[378335645,1754830668506,460.0,0.00019997,2]
[378335646,1754830670931,460.0,0.00019997,2]
[378335647,1754830671954,1037.32,0.00019997,2]
[378335648,1754830673826,460.0,0.00019997,2]
[378335649,1754830677090,460.0,0.00019997,2]
[378335650,1754830678037,460.46855313,0.00019997,2]
[378335651,1754830679929,460.0,0.00019997,2]
[378335652,1754830680055,460.0,0.00019997,2]
[378335653,1754830680868,460.0,0.00019997,2]
[378335654,1754830681180,180.11024073,0.00019997,2]
[378335655,1754830682359,460.0,0.00019997,2]
[378335656,1754830682625,460.0,0.00019997,2]
[378335657,1754830683807,1877.28,0.00019997,2]
[378335658,1754830684576,67.49158141,0.00019997,2]
[378335659,1754830684600,392.50841859,0.00019997,2]
[378335660,1754830688712,460.0,0.00019997,2]
[378335661,1754830690534,460.0,0.00019997,2]
[378335662,1754830693411,460.0,0.00019997,2]
[378335663,1754830696275,454.2274953,0.00019897,4]
[378335664,1754830696402,460.0,0.00019997,2]
[378335665,1754830698511,460.0,0.00019997,2]
[378335666,1754830700492,460.0,0.00019997,2]
[378335667,1754830702236,460.0,0.00019997,2]
[378335668,1754830704906,460.0,0.00019997,2]
[378335669,1754830706366,460.0,0.00019997,2]
[378335671,1754830709118,460.0,0.00019997,2]
[378335674,1754830709859,5123.62300324,0.000199,2]
[378335675,1754830711520,463.63829504,0.00019997,2]
[378335676,1754830713305,460.0,0.00019997,2]
[378335677,1754830714291,439.54857351,0.00019997,2]
[378335678,1754830715390,460.0,0.00019997,2]
[378335679,1754830716721,460.0,0.00019997,2]